[Event "*** Titled Tuesday Blitz"]
[Site "Chess.com"]
[Date "2021.04.20"]
[Round "3"]
[White "DrCeltic"]
[Black "secretsuperstar7"]
[Result "0-1"]
[WhiteElo "2488"]
[BlackElo "2250"]
[TimeControl "180+1"]
[EndTime "10:28:35 PDT"]
[Termination "secretsuperstar7 won on time"]

1. e4 {[%clk 0:03:00.9]} 1... c5 {[%clk 0:02:59.2]} 2. Nf3 {[%clk 0:02:59.5]}
2... d6 {[%clk 0:02:55.7]} 3. d4 {[%clk 0:02:59.9]} 3... cxd4 {[%clk 0:02:55.6]}
4. Nxd4 {[%clk 0:03:00.8]} 4... Nf6 {[%clk 0:02:54.8]} 5. Nc3 {[%clk 0:03:01.2]}
5... Nc6 {[%clk 0:02:54.6]} 6. Bc4 {[%clk 0:03:00.2]} 6... e6 {[%clk 0:02:52.7]}
7. Be3 {[%clk 0:02:59.2]} 7... a6 {[%clk 0:02:50.4]} 8. Qe2 {[%clk 0:02:57.7]}
8... Be7 {[%clk 0:02:46.5]} 9. O-O-O {[%clk 0:02:57.4]} 9... Bd7 {[%clk
0:02:43.4]} 10. Bb3 {[%clk 0:02:57.2]} 10... b5 {[%clk 0:02:40.5]} 11. f3 {[%clk
0:02:31]} 11... Qc7 {[%clk 0:02:36.4]} 12. g4 {[%clk 0:02:29.6]} 12... Rb8
{[%clk 0:01:54.3]} 13. g5 {[%clk 0:02:26.7]} 13... Nh5 {[%clk 0:01:53.3]} 14. f4
{[%clk 0:02:18.5]} 14... Nxd4 {[%clk 0:01:49.3]} 15. Rxd4 {[%clk 0:02:15.1]}
15... g6 {[%clk 0:01:43.3]} 16. Qf2 {[%clk 0:01:44.4]} 16... a5 {[%clk
0:00:51.1]} 17. a4 {[%clk 0:01:18.1]} 17... bxa4 {[%clk 0:00:48.8]} 18. Bxa4
{[%clk 0:01:16]} 18... Bxa4 {[%clk 0:00:39.2]} 19. Nxa4 {[%clk 0:01:02.7]} 19...
Ng7 {[%clk 0:00:29.8]} 20. Rhd1 {[%clk 0:00:27]} 20... O-O {[%clk 0:00:18.1]}
21. Qe2 {[%clk 0:00:22.7]} 21... Rfc8 {[%clk 0:00:17.1]} 22. Qd3 {[%clk
0:00:17.2]} 22... Qb7 {[%clk 0:00:16.2]} 23. b3 {[%clk 0:00:16.3]} 23... Ne8
{[%clk 0:00:15.7]} 24. Rc4 {[%clk 0:00:16.3]} 24... Nc7 {[%clk 0:00:15.1]} 25.
Nb6 {[%clk 0:00:15.3]} 25... Rd8 {[%clk 0:00:15.4]} 26. Qc3 {[%clk 0:00:13.7]}
26... Nb5 {[%clk 0:00:15.4]} 27. Qxa5 {[%clk 0:00:09.8]} 27... d5 {[%clk
0:00:15.5]} 28. Ra4 {[%clk 0:00:05.5]} 28... Nd6 {[%clk 0:00:14.8]} 29. Qa7
{[%clk 0:00:04.7]} 29... Qxa7 {[%clk 0:00:14.5]} 30. Rxa7 {[%clk 0:00:05.6]}
30... Bf8 {[%clk 0:00:14.1]} 31. e5 {[%clk 0:00:05.4]} 31... Nf5 {[%clk
0:00:13.9]} 32. Bg1 {[%clk 0:00:05.1]} 32... d4 {[%clk 0:00:13.7]} 33. Nd7
{[%clk 0:00:04.6]} 33... Rbc8 {[%clk 0:00:12.7]} 34. Nxf8 {[%clk 0:00:04.8]}
34... Kxf8 {[%clk 0:00:13]} 35. Kb2 {[%clk 0:00:04.9]} 35... Ne3 {[%clk
0:00:12.4]} 36. Rd2 {[%clk 0:00:04.3]} 36... Rb8 {[%clk 0:00:11.1]} 37. Ra4
{[%clk 0:00:03.6]} 37... Nf5 {[%clk 0:00:10.5]} 38. Rc4 {[%clk 0:00:03]} 38...
Rb5 {[%clk 0:00:10.4]} 39. Bxd4 {[%clk 0:00:03.3]} 39... Rbd5 {[%clk 0:00:10.6]}
40. c3 {[%clk 0:00:03.4]} 40... Ne3 {[%clk 0:00:09.1]} 41. Rb4 {[%clk
0:00:02.6]} 41... Nf1 {[%clk 0:00:08.4]} 42. Rd1 {[%clk 0:00:02.7]} 42... Ne3
{[%clk 0:00:08]} 43. Rd3 {[%clk 0:00:03.3]} 43... Nf5 {[%clk 0:00:08.3]} 44. Rh3
{[%clk 0:00:03.8]} 44... Kg8 {[%clk 0:00:07.5]} 45. Rd3 {[%clk 0:00:03]} 45...
Kg7 {[%clk 0:00:06.6]} 46. h3 {[%clk 0:00:03.2]} 46... h6 {[%clk 0:00:06.6]} 47.
Rc4 {[%clk 0:00:03.6]} 47... hxg5 {[%clk 0:00:06.6]} 48. fxg5 {[%clk 0:00:04]}
48... Rh8 {[%clk 0:00:05.7]} 49. b4 {[%clk 0:00:03.3]} 49... Rh4 {[%clk
0:00:05.3]} 50. Rc5 {[%clk 0:00:02.9]} 50... Rd7 {[%clk 0:00:04.6]} 51. b5
{[%clk 0:00:02.8]} 51... Rh8 {[%clk 0:00:03.3]} 52. b6 {[%clk 0:00:02.4]} 52...
Rb8 {[%clk 0:00:03.4]} 53. Rc6 {[%clk 0:00:02.9]} 53... Rbb7 {[%clk 0:00:03.1]}
54. Kb3 {[%clk 0:00:03.1]} 54... Ne7 {[%clk 0:00:03.1]} 55. Rc4 {[%clk
0:00:01.3]} 55... Nd5 {[%clk 0:00:03]} 56. Rc6 {[%clk 0:00:01.4]} 56... Ne7
{[%clk 0:00:02.3]} 0-1

[Event "*** Titled Tuesday Blitz"]
[Site "Chess.com"]
[Date "2021.04.20"]
[Round "3"]
[White "Nayemhaque22"]
[Black "SanchezKelvin"]
[Result "1/2-1/2"]
[WhiteElo "2460"]
[BlackElo "108"]
[TimeControl "180+1"]
[EndTime "10:28:35 PDT"]
[Termination "Game drawn by agreement"]

1. d4 {[%clk 0:02:59.7]} 1... Nf6 {[%clk 0:02:59.2]} 2. Bg5 {[%clk 0:02:57.7]}
2... Ne4 {[%clk 0:02:58.8]} 3. Bf4 {[%clk 0:02:57.8]} 3... c5 {[%clk 0:02:59.1]}
4. Nd2 {[%clk 0:02:56.1]} 4... Nxd2 {[%clk 0:02:58.9]} 5. Qxd2 {[%clk 0:02:57]}
5... cxd4 {[%clk 0:02:59.4]} 6. Qxd4 {[%clk 0:02:57.2]} 6... Nc6 {[%clk
0:02:59.8]} 7. Qd2 {[%clk 0:02:57.1]} 7... d6 {[%clk 0:02:59]} 8. e4 {[%clk
0:02:56.2]} 8... g6 {[%clk 0:02:58.6]} 9. Qc3 {[%clk 0:02:51]} 9... Qa5 {[%clk
0:02:57.7]} 10. Bd2 {[%clk 0:02:48.9]} 10... Qxc3 {[%clk 0:02:49.2]} 11. Bxc3
{[%clk 0:02:49.8]} 11... f6 {[%clk 0:02:49.5]} 12. O-O-O {[%clk 0:02:45.8]}
12... Bh6+ {[%clk 0:02:48.6]} 13. Kb1 {[%clk 0:02:45.1]} 13... Be6 {[%clk
0:02:48.2]} 14. g3 {[%clk 0:02:38.3]} 14... O-O {[%clk 0:02:45]} 15. f4 {[%clk
0:02:38]} 15... Rad8 {[%clk 0:02:31.3]} 16. h3 {[%clk 0:02:34.1]} 16... d5
{[%clk 0:02:24.4]} 17. exd5 {[%clk 0:02:29.4]} 17... Rxd5 {[%clk 0:02:23.8]} 18.
Be2 {[%clk 0:02:23.1]} 18... Rxd1+ {[%clk 0:02:18]} 19. Bxd1 {[%clk 0:02:24]}
19... Rd8 {[%clk 0:02:17.8]} 20. Bf3 {[%clk 0:02:21.8]} 20... Nd4 {[%clk
0:02:11.3]} 21. Bxd4 {[%clk 0:02:17.6]} 21... Rxd4 {[%clk 0:02:07.7]} 22. Ne2
{[%clk 0:02:18.5]} 22... Rd7 {[%clk 0:02:06.3]} 23. Be4 {[%clk 0:02:09.7]} 23...
f5 {[%clk 0:02:02.6]} 24. Bd3 {[%clk 0:02:08.6]} 24... Bg7 {[%clk 0:02:01]} 25.
Rd1 {[%clk 0:02:07.5]} 25... Kf8 {[%clk 0:01:57.6]} 26. c3 {[%clk 0:02:07.5]}
26... Bd5 {[%clk 0:01:54.7]} 27. Kc2 {[%clk 0:02:05.8]} 27... Bf3 {[%clk
0:01:28.9]} 28. Re1 {[%clk 0:02:05.3]} 28... Bf6 {[%clk 0:01:15.5]} 29. a4
{[%clk 0:01:56]} 29... a6 {[%clk 0:01:14.6]} 30. a5 {[%clk 0:01:55.1]} 30... Bc6
{[%clk 0:01:08.1]} 31. b4 {[%clk 0:01:52]} 31... e5 {[%clk 0:00:57.7]} 32. fxe5
{[%clk 0:01:48.8]} 32... Bxe5 {[%clk 0:00:51.7]} 33. Nf4 {[%clk 0:01:47.4]}
33... Re7 {[%clk 0:00:44.6]} 34. c4 {[%clk 0:01:37.7]} 34... Ba4+ {[%clk
0:00:36.1]} 35. Kb1 {[%clk 0:01:31.6]} 35... Bd6 {[%clk 0:00:28.4]} 36. Rxe7
{[%clk 0:01:32.5]} 36... Kxe7 {[%clk 0:00:27.6]} 37. Kb2 {[%clk 0:01:25.8]}
37... Be5+ {[%clk 0:00:17.9]} 38. Ka3 {[%clk 0:01:25.2]} 38... Bd7 {[%clk
0:00:17.2]} 39. b5 {[%clk 0:01:24.8]} 39... g5 {[%clk 0:00:16.5]} 40. Ne2 {[%clk
0:01:23]} 40... Kd6 {[%clk 0:00:16.6]} 41. Kb4 {[%clk 0:01:22.3]} 41... h6
{[%clk 0:00:16.4]} 42. c5+ {[%clk 0:01:21.1]} 42... Kc7 {[%clk 0:00:16.6]} 43.
bxa6 {[%clk 0:01:21.3]} 43... bxa6 {[%clk 0:00:16.5]} 44. Bxa6 {[%clk
0:01:22.2]} 44... f4 {[%clk 0:00:17]} 45. gxf4 {[%clk 0:01:18.8]} 45... gxf4
{[%clk 0:00:17]} 46. Ng1 {[%clk 0:01:19.1]} 46... Bc6 {[%clk 0:00:14.9]} 47. Be2
{[%clk 0:01:18.9]} 47... Bd4 {[%clk 0:00:14.7]} 48. Nf3 {[%clk 0:01:17.7]} 48...
Be3 {[%clk 0:00:15]} 49. Ne5 {[%clk 0:01:17.6]} 49... Be4 {[%clk 0:00:13.9]} 50.
Bd3 {[%clk 0:01:14.3]} 50... Bd5 {[%clk 0:00:13]} 51. Be2 {[%clk 0:01:13.1]}
51... Bd4 {[%clk 0:00:13]} 52. Nd3 {[%clk 0:01:08.8]} 52... f3 {[%clk
0:00:12.3]} 53. Bf1 {[%clk 0:01:08.9]} 53... f2 {[%clk 0:00:12.6]} 54. Nf4
{[%clk 0:01:08.2]} 54... Bf7 {[%clk 0:00:10.3]} 55. Nd3 {[%clk 0:01:06]} 55...
Be3 {[%clk 0:00:10.2]} 56. Bg2 {[%clk 0:01:05.2]} 56... Bd5 {[%clk 0:00:08.5]}
57. Bf1 {[%clk 0:01:04.7]} 57... Be4 {[%clk 0:00:08.5]} 58. Kc3 {[%clk
0:01:04.1]} 58... Bxd3 {[%clk 0:00:07.7]} 59. Kxd3 {[%clk 0:01:05]} 59... Bxc5
{[%clk 0:00:08.3]} 60. Ke4 {[%clk 0:01:04.4]} 60... Ba7 {[%clk 0:00:07.8]} 61.
Kf5 {[%clk 0:01:04.5]} 61... Be3 {[%clk 0:00:07.7]} 62. Kg6 {[%clk 0:01:03.9]}
62... Kb7 {[%clk 0:00:07.7]} 63. Kf5 {[%clk 0:01:02.7]} 63... Ka7 {[%clk
0:00:08]} 64. Ke4 {[%clk 0:01:02.9]} 64... Bd2 {[%clk 0:00:08.4]} 65. Kd3 {[%clk
0:01:02.8]} 65... Bxa5 {[%clk 0:00:08.2]} 66. Ke4 {[%clk 0:01:02.9]} 66... Bb6
{[%clk 0:00:09.1]} 67. Kf3 {[%clk 0:01:02.9]} 67... Kb7 {[%clk 0:00:09.4]} 68.
Kg4 {[%clk 0:01:03.1]} 68... Kc7 {[%clk 0:00:09.7]} 69. Kf5 {[%clk 0:01:03]}
69... Be3 {[%clk 0:00:09.9]} 70. Ke4 {[%clk 0:01:03]} 70... Bd2 {[%clk
0:00:10.1]} 71. Kf3 {[%clk 0:01:02.9]} 71... Be1 {[%clk 0:00:10.4]} 72. Ke3
{[%clk 0:01:03]} 72... Kd6 {[%clk 0:00:10.7]} 73. Kf4 {[%clk 0:01:03.1]} 73...
Ke7 {[%clk 0:00:10.9]} 74. Kf5 {[%clk 0:00:58.7]} 74... Kf7 {[%clk 0:00:11.2]}
75. h4 {[%clk 0:00:58.5]} 75... Kg7 {[%clk 0:00:10.5]} 76. h5 {[%clk 0:00:58.8]}
76... Bd2 {[%clk 0:00:09.8]} 1/2-1/2

[Event "*** Titled Tuesday Blitz"]
[Site "Chess.com"]
[Date "2021.04.20"]
[Round "3"]
[White "chess94cu"]
[Black "davigator"]
[Result "0-1"]
[WhiteElo "2591"]
[BlackElo "2421"]
[TimeControl "180+1"]
[EndTime "10:28:36 PDT"]
[Termination "davigator won on time"]

1. d4 {[%clk 0:03:00.9]} 1... Nf6 {[%clk 0:02:58]} 2. Nf3 {[%clk 0:03:00.5]}
2... e6 {[%clk 0:02:57.9]} 3. g3 {[%clk 0:02:57.8]} 3... b5 {[%clk 0:02:56.7]}
4. Bg2 {[%clk 0:02:57.8]} 4... Bb7 {[%clk 0:02:57]} 5. O-O {[%clk 0:02:58.3]}
5... Be7 {[%clk 0:02:56.2]} 6. b3 {[%clk 0:02:58.8]} 6... d5 {[%clk 0:02:53.7]}
7. Nbd2 {[%clk 0:02:59.3]} 7... O-O {[%clk 0:02:53]} 8. Bb2 {[%clk 0:02:59.9]}
8... c5 {[%clk 0:02:52]} 9. dxc5 {[%clk 0:02:42.4]} 9... Bxc5 {[%clk 0:02:50.9]}
10. a4 {[%clk 0:02:40]} 10... b4 {[%clk 0:02:50.3]} 11. c4 {[%clk 0:02:39.5]}
11... bxc3 {[%clk 0:02:49.1]} 12. Bxc3 {[%clk 0:02:38.5]} 12... a5 {[%clk
0:02:49]} 13. Rc1 {[%clk 0:02:34]} 13... Na6 {[%clk 0:02:47.3]} 14. e3 {[%clk
0:02:16.8]} 14... Ba3 {[%clk 0:02:46.7]} 15. Ra1 {[%clk 0:02:14.8]} 15... Bb4
{[%clk 0:02:46.8]} 16. Bd4 {[%clk 0:02:12.4]} 16... Nc5 {[%clk 0:02:43.8]} 17.
Ne5 {[%clk 0:02:08.7]} 17... Nfd7 {[%clk 0:02:38.9]} 18. Ndf3 {[%clk 0:02:06.2]}
18... Ne4 {[%clk 0:02:36.4]} 19. Rc1 {[%clk 0:02:01.1]} 19... Ndc5 {[%clk
0:02:27.8]} 20. Bxc5 {[%clk 0:01:42]} 20... Nxc5 {[%clk 0:02:19.4]} 21. Nd4
{[%clk 0:01:42.3]} 21... Rc8 {[%clk 0:02:14.4]} 22. Qg4 {[%clk 0:01:24.6]} 22...
Qe7 {[%clk 0:02:08.3]} 23. Rfd1 {[%clk 0:01:20.8]} 23... f6 {[%clk 0:02:06.8]}
24. Nef3 {[%clk 0:01:01.3]} 24... f5 {[%clk 0:02:00.3]} 25. Qf4 {[%clk
0:00:57.1]} 25... Nd7 {[%clk 0:01:51.8]} 26. Nb5 {[%clk 0:00:29.7]} 26... e5
{[%clk 0:01:45.5]} 27. Qh4 {[%clk 0:00:29]} 27... Nf6 {[%clk 0:01:38.6]} 28. Bh3
{[%clk 0:00:15]} 28... g6 {[%clk 0:01:30.5]} 29. Bg2 {[%clk 0:00:13.6]} 29...
Rfd8 {[%clk 0:01:17.5]} 30. Ne1 {[%clk 0:00:13.2]} 30... Ba6 {[%clk 0:01:09.3]}
31. Nd3 {[%clk 0:00:12.8]} 31... Bxb5 {[%clk 0:01:07.7]} 32. axb5 {[%clk
0:00:13.7]} 32... Bd6 {[%clk 0:01:03.8]} 33. Rc6 {[%clk 0:00:12.9]} 33... Rxc6
{[%clk 0:01:02.8]} 34. bxc6 {[%clk 0:00:13.8]} 34... Rc8 {[%clk 0:01:00.2]} 35.
Rc1 {[%clk 0:00:14.3]} 35... e4 {[%clk 0:00:54.1]} 36. Nf4 {[%clk 0:00:13.1]}
36... Kg7 {[%clk 0:00:51.1]} 37. Qg5 {[%clk 0:00:10.3]} 37... Be5 {[%clk
0:00:46.1]} 38. Bf1 {[%clk 0:00:09.2]} 38... Qd6 {[%clk 0:00:42.8]} 39. Bb5
{[%clk 0:00:05.7]} 39... d4 {[%clk 0:00:39.2]} 40. exd4 {[%clk 0:00:05.1]} 40...
Bxd4 {[%clk 0:00:37]} 41. Ne2 {[%clk 0:00:05]} 41... Be5 {[%clk 0:00:35.5]} 42.
Qe3 {[%clk 0:00:04.9]} 42... Nd5 {[%clk 0:00:34.6]} 43. Qd2 {[%clk 0:00:04.5]}
43... Nc7 {[%clk 0:00:30.3]} 44. Qxa5 {[%clk 0:00:03.4]} 44... Qd5 {[%clk
0:00:22.9]} 45. Qa4 {[%clk 0:00:01.8]} 45... Qxb5 {[%clk 0:00:21.4]} 46. Qa7
{[%clk 0:00:02.4]} 46... Qb8 {[%clk 0:00:18.7]} 47. Qe3 {[%clk 0:00:01.9]} 47...
Rd8 {[%clk 0:00:18.6]} 48. Nf4 {[%clk 0:00:01.1]} 48... Bxf4 {[%clk 0:00:17.2]}
49. Qxf4 {[%clk 0:00:02]} 49... Qc8 {[%clk 0:00:16.3]} 50. Qe3 {[%clk
0:00:02.1]} 50... Rd5 {[%clk 0:00:16.2]} 51. Qc3+ {[%clk 0:00:02.2]} 51... Kf7
{[%clk 0:00:15.5]} 52. b4 {[%clk 0:00:03.1]} 52... Ne6 {[%clk 0:00:14.7]} 53.
Qc4 {[%clk 0:00:03.7]} 53... Rd4 {[%clk 0:00:13.5]} 54. Qb3 {[%clk 0:00:03.1]}
54... Qb8 {[%clk 0:00:11.7]} 55. b5 {[%clk 0:00:03.4]} 55... Rd6 {[%clk
0:00:10.2]} 56. b6 {[%clk 0:00:03.5]} 56... Ke7 {[%clk 0:00:07.7]} 57. c7 {[%clk
0:00:02.2]} 57... Qc8 {[%clk 0:00:08]} 58. b7 {[%clk 0:00:02.2]} 58... Qxc7
{[%clk 0:00:04.5]} 0-1

[Event "*** Titled Tuesday Blitz"]
[Site "Chess.com"]
[Date "2021.04.20"]
[Round "3"]
[White "freshfoodcompany"]
[Black "shineatchess"]
[Result "0-1"]
[WhiteElo "2380"]
[BlackElo "2215"]
[TimeControl "180+1"]
[EndTime "10:28:37 PDT"]
[Termination "shineatchess won on time"]

1. d4 {[%clk 0:03:00.9]} 1... f5 {[%clk 0:02:59.5]} 2. Nf3 {[%clk 0:02:59.7]}
2... g6 {[%clk 0:02:59.5]} 3. g3 {[%clk 0:02:59.7]} 3... Bg7 {[%clk 0:02:59.7]}
4. Bg2 {[%clk 0:02:59.6]} 4... c6 {[%clk 0:02:57.9]} 5. O-O {[%clk 0:02:59.6]}
5... d6 {[%clk 0:02:58]} 6. c4 {[%clk 0:02:59.8]} 6... Nh6 {[%clk 0:02:58.2]} 7.
Nc3 {[%clk 0:02:59.4]} 7... O-O {[%clk 0:02:58]} 8. Bg5 {[%clk 0:02:56.9]} 8...
Nf7 {[%clk 0:02:55]} 9. Qd2 {[%clk 0:02:55.4]} 9... Nxg5 {[%clk 0:02:48.7]} 10.
Nxg5 {[%clk 0:02:51.3]} 10... e5 {[%clk 0:02:39.3]} 11. dxe5 {[%clk 0:02:47.6]}
11... dxe5 {[%clk 0:02:39.5]} 12. Qxd8 {[%clk 0:02:47]} 12... Rxd8 {[%clk
0:02:40.4]} 13. Rad1 {[%clk 0:02:46.7]} 13... Re8 {[%clk 0:02:34.9]} 14. Nf3
{[%clk 0:02:17.2]} 14... Be6 {[%clk 0:02:24.8]} 15. b3 {[%clk 0:02:05.4]} 15...
e4 {[%clk 0:02:24]} 16. Nd4 {[%clk 0:02:04.8]} 16... Na6 {[%clk 0:02:20.1]} 17.
Nxe6 {[%clk 0:01:57.3]} 17... Rxe6 {[%clk 0:02:17.9]} 18. Nb1 {[%clk 0:01:55.8]}
18... Rae8 {[%clk 0:02:09.5]} 19. Rd7 {[%clk 0:01:54.5]} 19... Nc5 {[%clk
0:02:04.7]} 20. Rdd1 {[%clk 0:01:40.5]} 20... a5 {[%clk 0:01:57.5]} 21. f4
{[%clk 0:01:22]} 21... exf3 {[%clk 0:01:51.8]} 22. Bxf3 {[%clk 0:01:21.4]} 22...
Ne4 {[%clk 0:01:34.8]} 23. Nd2 {[%clk 0:01:17]} 23... Nc3 {[%clk 0:01:25.5]} 24.
Rde1 {[%clk 0:01:03.3]} 24... Nxe2+ {[%clk 0:01:25]} 25. Bxe2 {[%clk 0:01:00.5]}
25... Rxe2 {[%clk 0:01:24.9]} 26. Nf3 {[%clk 0:00:57.8]} 26... Bd4+ {[%clk
0:01:13.2]} 27. Kh1 {[%clk 0:00:56.6]} 27... Bc3 {[%clk 0:01:12.9]} 28. Rc1
{[%clk 0:00:51]} 28... Bb4 {[%clk 0:01:07.3]} 29. Rcd1 {[%clk 0:00:46.5]} 29...
Rxa2 {[%clk 0:01:04.3]} 30. Rd7 {[%clk 0:00:46.5]} 30... Re7 {[%clk 0:01:04.7]}
31. Rfd1 {[%clk 0:00:36.7]} 31... Kf7 {[%clk 0:00:55.2]} 32. Ng5+ {[%clk
0:00:36.4]} 32... Kg7 {[%clk 0:00:45.8]} 33. Rxe7+ {[%clk 0:00:34.8]} 33... Bxe7
{[%clk 0:00:45.2]} 34. Rd7 {[%clk 0:00:33.9]} 34... Kf6 {[%clk 0:00:41.2]} 35.
Nxh7+ {[%clk 0:00:28.6]} 35... Ke6 {[%clk 0:00:40.8]} 36. Rxb7 {[%clk
0:00:28.1]} 36... Rb2 {[%clk 0:00:35.3]} 37. Rb6 {[%clk 0:00:25.1]} 37... Kd6
{[%clk 0:00:31.9]} 38. Ra6 {[%clk 0:00:23.2]} 38... Rxb3 {[%clk 0:00:23.1]} 39.
Rxa5 {[%clk 0:00:23.1]} 39... Rc3 {[%clk 0:00:23.3]} 40. Ra4 {[%clk 0:00:16.9]}
40... Rc2 {[%clk 0:00:21.1]} 41. h4 {[%clk 0:00:14.3]} 41... Ke6 {[%clk
0:00:17.6]} 42. Kg1 {[%clk 0:00:08.1]} 42... Ke5 {[%clk 0:00:15.3]} 43. Ra5+
{[%clk 0:00:06.4]} 43... Kd4 {[%clk 0:00:14.3]} 44. Ra7 {[%clk 0:00:05.7]} 44...
Bc5 {[%clk 0:00:13.7]} 45. Rd7+ {[%clk 0:00:05.7]} 45... Kxc4+ {[%clk
0:00:13.3]} 46. Kf1 {[%clk 0:00:05.3]} 46... Kb4 {[%clk 0:00:11.1]} 47. Ng5
{[%clk 0:00:04.4]} 47... Bb6 {[%clk 0:00:08.7]} 48. Ne6 {[%clk 0:00:03.4]} 48...
c5 {[%clk 0:00:08.2]} 49. Rb7 {[%clk 0:00:02.6]} 49... Kb5 {[%clk 0:00:07.8]}
50. Ke1 {[%clk 0:00:02.4]} 50... c4 {[%clk 0:00:07.3]} 51. Rg7 {[%clk
0:00:02.9]} 51... Rh2 {[%clk 0:00:06.8]} 52. Rxg6 {[%clk 0:00:03.3]} 52... c3
{[%clk 0:00:06.6]} 53. Rg5 {[%clk 0:00:03.2]} 53... Rh1+ {[%clk 0:00:06.4]} 54.
Ke2 {[%clk 0:00:02.8]} 54... c2 {[%clk 0:00:07.1]} 55. Rxf5+ {[%clk 0:00:03.2]}
55... Ka6 {[%clk 0:00:06.3]} 56. Nc7+ {[%clk 0:00:01.3]} 56... Bxc7 {[%clk
0:00:05.8]} 57. Rc5 {[%clk 0:00:01.2]} 57... Bb6 {[%clk 0:00:03.7]} 0-1

[Event "*** Titled Tuesday Blitz"]
[Site "Chess.com"]
[Date "2021.04.20"]
[Round "3"]
[White "QuintilianoR"]
[Black "ViktoriyaTarasova"]
[Result "1-0"]
[WhiteElo "2700"]
[BlackElo "2422"]
[TimeControl "180+1"]
[EndTime "10:28:40 PDT"]
[Termination "QuintilianoR won on time"]

1. d4 {[%clk 0:03:00.9]} 1... Nf6 {[%clk 0:02:59.8]} 2. Nf3 {[%clk 0:03:00.4]}
2... e6 {[%clk 0:02:59.9]} 3. c4 {[%clk 0:02:59.6]} 3... b6 {[%clk 0:02:59.5]}
4. g3 {[%clk 0:02:58.4]} 4... Ba6 {[%clk 0:02:58.3]} 5. b3 {[%clk 0:02:58.6]}
5... d5 {[%clk 0:02:57.8]} 6. Bg2 {[%clk 0:02:57.1]} 6... Nbd7 {[%clk 0:02:56]}
7. cxd5 {[%clk 0:02:48.3]} 7... exd5 {[%clk 0:02:55.2]} 8. O-O {[%clk
0:02:48.3]} 8... Bd6 {[%clk 0:02:55.3]} 9. Bb2 {[%clk 0:02:46.7]} 9... O-O
{[%clk 0:02:55]} 10. Nc3 {[%clk 0:02:45.9]} 10... Re8 {[%clk 0:02:51.4]} 11. Rc1
{[%clk 0:02:43.2]} 11... c6 {[%clk 0:02:49.6]} 12. Re1 {[%clk 0:02:32.9]} 12...
Rc8 {[%clk 0:02:48.9]} 13. Nd2 {[%clk 0:02:22.5]} 13... b5 {[%clk 0:02:05.6]}
14. e4 {[%clk 0:02:17.3]} 14... b4 {[%clk 0:02:04.2]} 15. Na4 {[%clk 0:02:16.7]}
15... dxe4 {[%clk 0:02:02.4]} 16. Nxe4 {[%clk 0:02:16.2]} 16... Nxe4 {[%clk
0:02:02.9]} 17. Bxe4 {[%clk 0:02:15.1]} 17... Bb5 {[%clk 0:01:37.3]} 18. d5
{[%clk 0:01:59.3]} 18... c5 {[%clk 0:01:19.9]} 19. Bf5 {[%clk 0:00:54.3]} 19...
Rxe1+ {[%clk 0:00:56.3]} 20. Qxe1 {[%clk 0:00:55.2]} 20... c4 {[%clk 0:00:52.4]}
21. Bd4 {[%clk 0:00:48.9]} 21... cxb3 {[%clk 0:00:32.9]} 22. axb3 {[%clk
0:00:43]} 22... Rxc1 {[%clk 0:00:29.8]} 23. Qxc1 {[%clk 0:00:43.9]} 23... g6
{[%clk 0:00:13.6]} 24. Bh3 {[%clk 0:00:28.8]} 24... a5 {[%clk 0:00:12.6]} 25.
Qe3 {[%clk 0:00:20.9]} 25... Bf8 {[%clk 0:00:10.7]} 26. Bb2 {[%clk 0:00:19.9]}
26... Qe7 {[%clk 0:00:09.3]} 27. Qd2 {[%clk 0:00:12.9]} 27... Ne5 {[%clk
0:00:05]} 28. Bg2 {[%clk 0:00:12.8]} 28... Nd3 {[%clk 0:00:03.1]} 29. Bd4 {[%clk
0:00:12.7]} 29... Qe1+ {[%clk 0:00:02.2]} 30. Qxe1 {[%clk 0:00:12.6]} 30... Nxe1
{[%clk 0:00:02.9]} 31. Be4 {[%clk 0:00:13]} 31... Nd3 {[%clk 0:00:02.9]} 32.
Bxd3 {[%clk 0:00:12.1]} 32... Bxd3 {[%clk 0:00:03.1]} 33. Bb6 {[%clk 0:00:11.7]}
33... Bc2 {[%clk 0:00:03.1]} 34. Bxa5 {[%clk 0:00:11.9]} 34... Bxb3 {[%clk
0:00:03.2]} 35. Nb6 {[%clk 0:00:12.8]} 35... Ba2 {[%clk 0:00:02.7]} 36. Nd7
{[%clk 0:00:11.4]} 36... b3 {[%clk 0:00:02.9]} 37. Bc3 {[%clk 0:00:11.1]} 37...
Bd6 {[%clk 0:00:02.5]} 38. Nf6+ {[%clk 0:00:10.8]} 38... Kf8 {[%clk 0:00:02.6]}
39. Nxh7+ {[%clk 0:00:11]} 39... Ke7 {[%clk 0:00:03.3]} 40. Nf6 {[%clk
0:00:11.2]} 40... Kd8 {[%clk 0:00:03.4]} 41. Ne4 {[%clk 0:00:11.3]} 41... Be7
{[%clk 0:00:01.9]} 42. d6 {[%clk 0:00:11.2]} 42... Bf8 {[%clk 0:00:01.7]} 43. h4
{[%clk 0:00:10.7]} 43... Kd7 {[%clk 0:00:01.9]} 44. Be5 {[%clk 0:00:10.8]} 44...
Ke6 {[%clk 0:00:02.2]} 45. Bc3 {[%clk 0:00:10.3]} 45... Kd5 {[%clk 0:00:02.7]}
46. d7 {[%clk 0:00:09.8]} 46... Be7 {[%clk 0:00:02.4]} 47. Nd2 {[%clk
0:00:09.4]} 47... Kd6 {[%clk 0:00:02.5]} 48. Nc4+ {[%clk 0:00:09]} 48... Kxd7
{[%clk 0:00:02.7]} 49. Ne5+ {[%clk 0:00:09.7]} 49... Ke8 {[%clk 0:00:03.2]} 50.
Nc4 {[%clk 0:00:09]} 50... Bc5 {[%clk 0:00:01.6]} 51. Nb2 {[%clk 0:00:09.4]}
51... Kd7 {[%clk 0:00:01.5]} 52. Kf1 {[%clk 0:00:09.9]} 52... Bd6 {[%clk
0:00:02]} 53. Ke2 {[%clk 0:00:10.3]} 53... Ke6 {[%clk 0:00:02.5]} 54. f4 {[%clk
0:00:10.8]} 54... Be7 {[%clk 0:00:02.4]} 55. Kf3 {[%clk 0:00:11.1]} 55... Bc5
{[%clk 0:00:02.8]} 56. g4 {[%clk 0:00:10.7]} 56... Bb1 {[%clk 0:00:03.1]} 57. h5
{[%clk 0:00:11]} 57... gxh5 {[%clk 0:00:01.6]} 58. gxh5 {[%clk 0:00:11.9]} 58...
Ke7 {[%clk 0:00:01.6]} 59. Kg4 {[%clk 0:00:11.5]} 59... Kf8 {[%clk 0:00:02]} 60.
Nc4 {[%clk 0:00:11.4]} 60... Kg8 {[%clk 0:00:02.3]} 61. Ne5 {[%clk 0:00:11.5]}
61... Be4 {[%clk 0:00:01.6]} 62. Nd7 {[%clk 0:00:11.4]} 62... Be7 {[%clk
0:00:01.4]} 63. f5 {[%clk 0:00:11.2]} 1-0